[Event "Titled Tuesday Blitz October 26 2021"]
[White "Timofeev, Artyom"]
[Black "Martinez Alcantara, Jose Eduardo"]
[WhiteFideId "4140419"]
[BlackFideId "3805662"]
[WhiteElo "2591"]
[BlackElo "2690"]
[Result "0-1"]
[Round "09"]
[TimeControl "180+1"]
[Date "2021.10.26"]
[WhiteClock "0:01:24"]
[BlackClock "0:00:58"]

1. c4 {[%clk 0:03:00]}  c5 {[%clk 0:02:59]} 2. Nc3 {[%clk 0:03:00]}  Nc6 {[%clk 0:03:00]} 3. g3 {[%clk 0:02:59]}  g6 {[%clk 0:03:00]} 4. Bg2 {[%clk 0:03:00]}  Bg7 {[%clk 0:03:01]} 5. Nf3 {[%clk 0:03:00]}  d6 {[%clk 0:03:01]} 6. O-O {[%clk 0:03:00]}  e6 {[%clk 0:03:01]} 7. d3 {[%clk 0:02:57]}  Nge7 {[%clk 0:03:02]} 8. Bd2 {[%clk 0:02:58]}  O-O {[%clk 0:02:57]} 9. a3 {[%clk 0:02:57]}  b6 {[%clk 0:02:57]} 10. Rb1 {[%clk 0:02:54]}  Bb7 {[%clk 0:02:57]} 11. b4 {[%clk 0:02:54]}  Qd7 {[%clk 0:02:54]} 12. Re1 {[%clk 0:02:39]}  Nd4 {[%clk 0:02:32]} 13. e3 {[%clk 0:02:37]}  Nxf3+ {[%clk 0:02:23]} 14. Bxf3 {[%clk 0:02:37]}  Bxf3 {[%clk 0:02:17]} 15. Qxf3 {[%clk 0:02:37]}  Nc6 {[%clk 0:02:17]} 16. Qe2 {[%clk 0:02:32]}  Rac8 {[%clk 0:02:14]} 17. Ne4 {[%clk 0:02:29]}  d5 {[%clk 0:02:07]} 18. cxd5 {[%clk 0:02:28]}  exd5 {[%clk 0:02:07]} 19. Ng5 {[%clk 0:02:28]}  c4 {[%clk 0:02:03]} 20. d4 {[%clk 0:02:11]}  Rfe8 {[%clk 0:01:57]} 21. Qd1 {[%clk 0:02:03]}  Ne7 {[%clk 0:01:37]} 22. Rc1 {[%clk 0:01:54]}  Nf5 {[%clk 0:01:37]} 23. Nf3 {[%clk 0:01:48]}  Nd6 {[%clk 0:01:35]} 24. Bc3 {[%clk 0:01:48]}  Qf5 {[%clk 0:01:29]} 25. Nd2 {[%clk 0:01:45]}  Qd3 {[%clk 0:01:25]} 26. a4 {[%clk 0:01:42]}  a6 {[%clk 0:01:22]} 27. Qc2 {[%clk 0:01:39]}  Bf8 {[%clk 0:01:08]} 28. Red1 {[%clk 0:01:35]}  b5 {[%clk 0:01:00]} 29. a5 {[%clk 0:01:28]}  Qe2 {[%clk 0:00:58]} 30. Re1 {[%clk 0:01:24]}  Qg4 {[%clk 0:00:58]} 31. Qd1 {[%clk 0:01:24]}  Qf5 {[%clk 0:00:58]} 32. Qf3 {[%clk 0:01:24]}  Qxf3 {[%clk 0:00:58]} 33. Nxf3 {[%clk 0:01:24]}  Ne4 {[%clk 0:00:58]} 0-1


[Site "https://www.chess.com"]

[Event "Titled Tuesday Blitz October 26 2021"]
[White "Tristan, Leonardo"]
[Black "Manukyan, Artyom"]
[WhiteFideId "113816"]
[BlackFideId "13305786"]
[WhiteElo "2404"]
[BlackElo "2034"]
[Result "1-0"]
[Round "09"]
[TimeControl "180+1"]
[Date "2021.10.26"]
[WhiteClock "0:00:08"]
[BlackClock "0:00:01"]

1. d4 {[%clk 0:03:00]}  d5 {[%clk 0:02:59]} 2. Nf3 {[%clk 0:03:01]}  Nf6 {[%clk 0:02:59]} 3. Bf4 {[%clk 0:03:01]}  c5 {[%clk 0:02:59]} 4. e3 {[%clk 0:03:01]}  Nc6 {[%clk 0:03:00]} 5. Nbd2 {[%clk 0:03:01]}  Nh5 {[%clk 0:02:59]} 6. dxc5 {[%clk 0:03:00]}  Nxf4 {[%clk 0:02:59]} 7. exf4 {[%clk 0:03:00]}  Qa5 {[%clk 0:02:59]} 8. Bd3 {[%clk 0:02:52]}  Qxc5 {[%clk 0:02:59]} 9. c3 {[%clk 0:02:45]}  Qd6 {[%clk 0:02:59]} 10. g3 {[%clk 0:02:44]}  g6 {[%clk 0:02:58]} 11. O-O {[%clk 0:02:43]}  Bg7 {[%clk 0:02:57]} 12. Re1 {[%clk 0:02:43]}  O-O {[%clk 0:02:57]} 13. Nb3 {[%clk 0:02:32]}  Bg4 {[%clk 0:02:56]} 14. Be2 {[%clk 0:02:32]}  a6 {[%clk 0:02:51]} 15. Nfd4 {[%clk 0:02:33]}  Bd7 {[%clk 0:02:45]} 16. Bf3 {[%clk 0:02:30]}  Rfd8 {[%clk 0:02:38]} 17. Bg2 {[%clk 0:02:29]}  Re8 {[%clk 0:02:33]} 18. Qd2 {[%clk 0:02:28]}  Rad8 {[%clk 0:02:32]} 19. Rad1 {[%clk 0:02:27]}  Nxd4 {[%clk 0:02:33]} 20. Nxd4 {[%clk 0:02:27]}  b5 {[%clk 0:02:31]} 21. h3 {[%clk 0:02:19]}  Bc8 {[%clk 0:02:28]} 22. Nf3 {[%clk 0:02:17]}  Bb7 {[%clk 0:02:26]} 23. Ne5 {[%clk 0:02:17]}  a5 {[%clk 0:02:20]} 24. a3 {[%clk 0:02:09]}  Qc5 {[%clk 0:02:12]} 25. Qd3 {[%clk 0:01:57]}  Qb6 {[%clk 0:02:11]} 26. Re2 {[%clk 0:01:37]}  b4 {[%clk 0:02:06]} 27. cxb4 {[%clk 0:01:23]}  Ba6 {[%clk 0:01:45]} 28. b5 {[%clk 0:01:23]}  Bxb5 {[%clk 0:01:28]} 29. Qb3 {[%clk 0:01:23]}  a4 {[%clk 0:01:29]} 30. Qb4 {[%clk 0:01:22]}  Bxe2 {[%clk 0:01:22]} 31. Qxb6 {[%clk 0:01:22]}  Bxd1 {[%clk 0:01:23]} 32. Qb5 {[%clk 0:00:52]}  Bb3 {[%clk 0:01:12]} 33. Nc6 {[%clk 0:00:41]}  Rd7 {[%clk 0:00:34]} 34. Nd4 {[%clk 0:00:42]}  Red8 {[%clk 0:00:33]} 35. Nxb3 {[%clk 0:00:39]}  axb3 {[%clk 0:00:34]} 36. Qxb3 {[%clk 0:00:39]}  d4 {[%clk 0:00:34]} 37. Qd3 {[%clk 0:00:39]}  Rb8 {[%clk 0:00:30]} 38. b4 {[%clk 0:00:37]}  Rc8 {[%clk 0:00:30]} 39. Bf1 {[%clk 0:00:37]}  Rc3 {[%clk 0:00:30]} 40. Qb5 {[%clk 0:00:32]}  Rd6 {[%clk 0:00:29]} 41. Qb8+ {[%clk 0:00:21]}  Bf8 {[%clk 0:00:28]} 42. a4 {[%clk 0:00:15]}  d3 {[%clk 0:00:18]} 43. Bxd3 {[%clk 0:00:15]}  Rcxd3 {[%clk 0:00:19]} 44. a5 {[%clk 0:00:16]}  Rd8 {[%clk 0:00:19]} 45. Qb7 {[%clk 0:00:15]}  R3d7 {[%clk 0:00:18]} 46. Qc6 {[%clk 0:00:14]}  e6 {[%clk 0:00:18]} 47. b5 {[%clk 0:00:14]}  Rd6 {[%clk 0:00:18]} 48. Qc7 {[%clk 0:00:14]}  R8d7 {[%clk 0:00:18]} 49. Qc8 {[%clk 0:00:14]}  Rd8 {[%clk 0:00:18]} 50. Qc7 {[%clk 0:00:15]}  R6d7 {[%clk 0:00:18]} 51. Qc6 {[%clk 0:00:15]}  Rd1+ {[%clk 0:00:18]} 52. Kg2 {[%clk 0:00:15]}  R1d6 {[%clk 0:00:17]} 53. Qc7 {[%clk 0:00:16]}  R6d7 {[%clk 0:00:15]} 54. Qc6 {[%clk 0:00:16]}  Bb4 {[%clk 0:00:12]} 55. a6 {[%clk 0:00:16]}  Rd6 {[%clk 0:00:13]} 56. Qc7 {[%clk 0:00:15]}  R6d7 {[%clk 0:00:12]} 57. Qc4 {[%clk 0:00:11]}  Ba5 {[%clk 0:00:12]} 58. Qc6 {[%clk 0:00:11]}  Rd6 {[%clk 0:00:11]} 59. Qb7 {[%clk 0:00:10]}  R6d7 {[%clk 0:00:05]} 60. Qc6 {[%clk 0:00:09]}  Rd6 {[%clk 0:00:06]} 61. Qe4 {[%clk 0:00:09]}  Bb6 {[%clk 0:00:05]} 62. Qb7 {[%clk 0:00:08]}  R8d7 {[%clk 0:00:04]} 63. Qb8+ {[%clk 0:00:08]}  Rd8 {[%clk 0:00:05]} 64. a7 {[%clk 0:00:09]}  Bxa7 {[%clk 0:00:03]} 65. Qxa7 {[%clk 0:00:09]}  Kg7 {[%clk 0:00:03]} 66. Qa1+ {[%clk 0:00:08]}  f6 {[%clk 0:00:03]} 67. Qa7+ {[%clk 0:00:08]}  R6d7 {[%clk 0:00:04]} 68. Qc5 {[%clk 0:00:08]}  Re8 {[%clk 0:00:03]} 69. Qc6 {[%clk 0:00:08]}  Ree7 {[%clk 0:00:04]} 70. h4 {[%clk 0:00:08]}  Kf7 {[%clk 0:00:04]} 71. h5 {[%clk 0:00:08]}  gxh5 {[%clk 0:00:04]} 72. Qf3 {[%clk 0:00:07]}  Rd5 {[%clk 0:00:04]} 73. b6 {[%clk 0:00:06]}  Rb7 {[%clk 0:00:04]} 74. Qb3 {[%clk 0:00:06]}  Rd6 {[%clk 0:00:04]} 75. f5 {[%clk 0:00:06]}  Rbxb6 {[%clk 0:00:03]} 76. Qf3 {[%clk 0:00:06]}  exf5 {[%clk 0:00:02]} 77. Qxh5+ {[%clk 0:00:07]}  Ke6 {[%clk 0:00:03]} 78. Qxh7 {[%clk 0:00:07]}  Rd2 {[%clk 0:00:02]} 79. Qg8+ {[%clk 0:00:08]}  Ke5 {[%clk 0:00:01]} 80. Qe8+ {[%clk 0:00:08]}  Re6 {[%clk 0:00:01]} 81. Qb5+ {[%clk 0:00:08]} 1-0


[Site "https://www.chess.com"]

[Event "Titled Tuesday Blitz October 26 2021"]
[White "Trost, Edvin"]
[Black "Kislov, Oleg"]
[WhiteFideId "1729519"]
[BlackFideId "13503774"]
[WhiteElo "2026"]
[BlackElo "2252"]
[Result "0-1"]
[Round "09"]
[TimeControl "180+1"]
[Date "2021.10.26"]
[WhiteClock "0:00:17"]
[BlackClock "0:00:38"]

1. e4 {[%clk 0:03:00]}  c5 {[%clk 0:02:59]} 2. Nf3 {[%clk 0:03:00]}  Nc6 {[%clk 0:02:59]} 3. d4 {[%clk 0:02:54]}  cxd4 {[%clk 0:02:59]} 4. Nxd4 {[%clk 0:02:55]}  e5 {[%clk 0:03:00]} 5. Nb5 {[%clk 0:02:55]}  d6 {[%clk 0:03:00]} 6. N1c3 {[%clk 0:02:45]}  a6 {[%clk 0:02:59]} 7. Na3 {[%clk 0:02:46]}  b5 {[%clk 0:03:00]} 8. Nd5 {[%clk 0:02:46]}  Nge7 {[%clk 0:03:00]} 9. c4 {[%clk 0:02:45]}  Nd4 {[%clk 0:03:00]} 10. Nc2 {[%clk 0:02:42]}  Nxd5 {[%clk 0:02:58]} 11. Nxd4 {[%clk 0:02:38]}  Nf6 {[%clk 0:02:56]} 12. Nf3 {[%clk 0:02:35]}  Be7 {[%clk 0:02:36]} 13. Bd3 {[%clk 0:02:19]}  O-O {[%clk 0:02:33]} 14. O-O {[%clk 0:02:16]}  bxc4 {[%clk 0:02:29]} 15. Bxc4 {[%clk 0:02:08]}  Bb7 {[%clk 0:02:28]} 16. Bd5 {[%clk 0:01:55]}  Nxd5 {[%clk 0:02:27]} 17. exd5 {[%clk 0:01:56]}  Qa5 {[%clk 0:02:25]} 18. Be3 {[%clk 0:01:47]}  Qxd5 {[%clk 0:02:23]} 19. Qe2 {[%clk 0:01:42]}  Qb5 {[%clk 0:02:19]} 20. Qxb5 {[%clk 0:01:33]}  axb5 {[%clk 0:02:19]} 21. Rfc1 {[%clk 0:01:33]}  Rfc8 {[%clk 0:02:11]} 22. Nd2 {[%clk 0:01:32]}  d5 {[%clk 0:02:05]} 23. Bb6 {[%clk 0:01:28]}  d4 {[%clk 0:01:58]} 24. f4 {[%clk 0:01:26]}  f6 {[%clk 0:01:56]} 25. a3 {[%clk 0:01:23]}  Kf7 {[%clk 0:01:54]} 26. Nb3 {[%clk 0:01:18]}  Bd5 {[%clk 0:01:39]} 27. Nd2 {[%clk 0:01:07]}  Ke6 {[%clk 0:01:36]} 28. Kf2 {[%clk 0:01:00]}  Kd6 {[%clk 0:01:20]} 29. b4 {[%clk 0:00:56]}  Rxc1 {[%clk 0:01:18]} 30. Rxc1 {[%clk 0:00:56]}  Rxa3 {[%clk 0:01:16]} 31. Bc5+ {[%clk 0:00:56]}  Ke6 {[%clk 0:01:16]} 32. Bxe7 {[%clk 0:00:55]}  Kxe7 {[%clk 0:01:16]} 33. Rc5 {[%clk 0:00:55]}  Ke6 {[%clk 0:01:05]} 34. Rxb5 {[%clk 0:00:52]}  Ra2 {[%clk 0:01:00]} 35. Ke1 {[%clk 0:00:51]}  e4 {[%clk 0:00:57]} 36. f5+ {[%clk 0:00:43]}  Kd6 {[%clk 0:00:49]} 37. Nf1 {[%clk 0:00:32]}  e3 {[%clk 0:00:48]} 38. Ng3 {[%clk 0:00:12]}  Ra1+ {[%clk 0:00:46]} 39. Ke2 {[%clk 0:00:11]}  Bc4+ {[%clk 0:00:46]} 40. Kf3 {[%clk 0:00:12]}  Bxb5 {[%clk 0:00:46]} 41. Ne4+ {[%clk 0:00:13]}  Ke5 {[%clk 0:00:46]} 42. Ng3 {[%clk 0:00:13]}  e2 {[%clk 0:00:44]} 43. Kg4 {[%clk 0:00:14]}  e1=Q {[%clk 0:00:44]} 44. Kh3 {[%clk 0:00:15]}  Qe3 {[%clk 0:00:43]} 45. Kh4 {[%clk 0:00:16]}  Qh6+ {[%clk 0:00:42]} 46. Nh5 {[%clk 0:00:17]}  Be2 {[%clk 0:00:40]} 47. Kg3 {[%clk 0:00:18]}  Qxh5 {[%clk 0:00:39]} 48. h4 {[%clk 0:00:18]}  Qg4+ {[%clk 0:00:39]} 49. Kf2 {[%clk 0:00:19]}  Bc4 {[%clk 0:00:38]} 50. g3 {[%clk 0:00:20]}  Ra2+ {[%clk 0:00:38]} 51. Ke1 {[%clk 0:00:17]}  Qe2# {[%clk 0:00:38]} 0-1


[Site "https://www.chess.com"]

[Event "Titled Tuesday Blitz October 26 2021"]
[White "Urazayev, Arystanbek"]
[Black "Harshavardhan G B"]
[WhiteFideId "13709810"]
[BlackFideId "25059009"]
[WhiteElo "2321"]
[BlackElo "1825"]
[Result "1-0"]
[Round "09"]
[TimeControl "180+1"]
[Date "2021.10.26"]
[WhiteClock "0:00:20"]
[BlackClock "0:00:15"]

1. e4 {[%clk 0:03:00]}  c5 {[%clk 0:02:54]} 2. Nf3 {[%clk 0:03:01]}  d6 {[%clk 0:02:45]} 3. d4 {[%clk 0:03:01]}  cxd4 {[%clk 0:02:46]} 4. Nxd4 {[%clk 0:03:01]}  Nf6 {[%clk 0:02:47]} 5. Nc3 {[%clk 0:03:02]}  a6 {[%clk 0:02:47]} 6. Be2 {[%clk 0:03:02]}  e5 {[%clk 0:02:41]} 7. Nb3 {[%clk 0:03:03]}  Be7 {[%clk 0:02:39]} 8. h4 {[%clk 0:03:02]}  Be6 {[%clk 0:02:31]} 9. f4 {[%clk 0:03:02]}  exf4 {[%clk 0:02:28]} 10. Bxf4 {[%clk 0:03:03]}  Nc6 {[%clk 0:02:27]} 11. Qd2 {[%clk 0:03:03]}  b5 {[%clk 0:02:24]} 12. O-O-O {[%clk 0:03:03]}  O-O {[%clk 0:02:22]} 13. Qe3 {[%clk 0:02:59]}  b4 {[%clk 0:02:15]} 14. Nd5 {[%clk 0:02:59]}  Bxd5 {[%clk 0:02:05]} 15. exd5 {[%clk 0:02:59]}  Ne5 {[%clk 0:02:05]} 16. h5 {[%clk 0:02:35]}  a5 {[%clk 0:02:02]} 17. h6 {[%clk 0:02:31]}  g6 {[%clk 0:01:53]} 18. Nc5 {[%clk 0:02:09]}  Neg4 {[%clk 0:01:35]} 19. Bxg4 {[%clk 0:02:08]}  Nxg4 {[%clk 0:01:36]} 20. Qg3 {[%clk 0:02:08]}  dxc5 {[%clk 0:01:28]} 21. Qxg4 {[%clk 0:02:08]}  Bf6 {[%clk 0:01:27]} 22. Rhe1 {[%clk 0:02:01]}  a4 {[%clk 0:01:17]} 23. Be5 {[%clk 0:02:02]}  b3 {[%clk 0:01:16]} 24. a3 {[%clk 0:02:00]}  bxc2 {[%clk 0:01:14]} 25. Kxc2 {[%clk 0:02:01]}  Bxe5 {[%clk 0:01:11]} 26. Rxe5 {[%clk 0:02:01]}  Qf6 {[%clk 0:01:12]} 27. Rde1 {[%clk 0:01:54]}  Rab8 {[%clk 0:01:05]} 28. Qxa4 {[%clk 0:01:48]}  Qb6 {[%clk 0:00:55]} 29. Rb1 {[%clk 0:01:24]}  c4 {[%clk 0:00:54]} 30. Qb4 {[%clk 0:01:25]}  Qd4 {[%clk 0:00:50]} 31. Qc3 {[%clk 0:01:24]}  Qf2+ {[%clk 0:00:42]} 32. Qd2 {[%clk 0:01:23]}  Qg3 {[%clk 0:00:42]} 33. Re3 {[%clk 0:01:20]}  Qg5 {[%clk 0:00:33]} 34. Rf1 {[%clk 0:01:08]}  Qxh6 {[%clk 0:00:31]} 35. Qc3 {[%clk 0:01:03]}  Qg5 {[%clk 0:00:30]} 36. Qd2 {[%clk 0:00:48]}  Rfd8 {[%clk 0:00:29]} 37. Rd1 {[%clk 0:00:44]}  Qf5+ {[%clk 0:00:28]} 38. Kc1 {[%clk 0:00:43]}  Rb3 {[%clk 0:00:26]} 39. Rxb3 {[%clk 0:00:34]}  cxb3 {[%clk 0:00:27]} 40. Qd3 {[%clk 0:00:35]}  Rc8+ {[%clk 0:00:26]} 41. Kb1 {[%clk 0:00:35]}  Qg4 {[%clk 0:00:21]} 42. Qxb3 {[%clk 0:00:33]}  Qxg2 {[%clk 0:00:21]} 43. d6 {[%clk 0:00:33]}  Qg4 {[%clk 0:00:20]} 44. d7 {[%clk 0:00:30]}  Rd8 {[%clk 0:00:21]} 45. Qd5 {[%clk 0:00:30]}  h5 {[%clk 0:00:21]} 46. Rd4 {[%clk 0:00:26]}  Qg1+ {[%clk 0:00:20]} 47. Ka2 {[%clk 0:00:26]}  Qe3 {[%clk 0:00:20]} 48. Re4 {[%clk 0:00:21]}  Qb6 {[%clk 0:00:17]} 49. Re8+ {[%clk 0:00:21]}  Kg7 {[%clk 0:00:17]} 50. Qe5+ {[%clk 0:00:20]}  Kh6 {[%clk 0:00:16]} 51. Rh8+ {[%clk 0:00:19]}  Rxh8 {[%clk 0:00:15]} 52. Qxh8+ {[%clk 0:00:20]}  Kg5 {[%clk 0:00:15]} 53. d8=Q+ {[%clk 0:00:20]}  Kf5 {[%clk 0:00:15]} 54. Qxb6 {[%clk 0:00:20]} 1-0


[Site "https://www.chess.com"]

[Event "Titled Tuesday Blitz October 26 2021"]
[White "Vlachos, Anatole"]
[Black "Shipov, Sergei"]
[WhiteFideId "26093189"]
[BlackFideId "4113624"]
[WhiteElo "2350"]
[BlackElo "2808"]
[Result "1-0"]
[Round "09"]
[TimeControl "180+1"]
[Date "2021.10.26"]
[WhiteClock "0:00:54"]
[BlackClock "0:00:12"]

1. e4 {[%clk 0:03:00]}  e6 {[%clk 0:02:59]} 2. d4 {[%clk 0:02:55]}  d5 {[%clk 0:02:59]} 3. Bd3 {[%clk 0:02:55]}  dxe4 {[%clk 0:02:58]} 4. Bxe4 {[%clk 0:02:56]}  Nf6 {[%clk 0:02:59]} 5. Bf3 {[%clk 0:02:56]}  c5 {[%clk 0:02:59]} 6. Ne2 {[%clk 0:02:54]}  Nc6 {[%clk 0:03:00]} 7. Be3 {[%clk 0:02:50]}  cxd4 {[%clk 0:02:59]} 8. Nxd4 {[%clk 0:02:47]}  Ne5 {[%clk 0:02:59]} 9. Be2 {[%clk 0:02:46]}  a6 {[%clk 0:02:53]} 10. O-O {[%clk 0:02:44]}  Qc7 {[%clk 0:02:44]} 11. c4 {[%clk 0:02:34]}  Bd6 {[%clk 0:02:41]} 12. b3 {[%clk 0:02:12]}  O-O {[%clk 0:02:35]} 13. Nc3 {[%clk 0:02:12]}  b6 {[%clk 0:02:31]} 14. Ndb5 {[%clk 0:02:07]}  axb5 {[%clk 0:02:23]} 15. Nxb5 {[%clk 0:02:08]}  Qc6 {[%clk 0:01:23]} 16. Qxd6 {[%clk 0:02:06]}  Bb7 {[%clk 0:01:23]} 17. Qxc6 {[%clk 0:02:06]}  Bxc6 {[%clk 0:01:20]} 18. Bxb6 {[%clk 0:02:06]}  Ned7 {[%clk 0:01:13]} 19. Be3 {[%clk 0:02:04]}  h6 {[%clk 0:01:09]} 20. a4 {[%clk 0:02:03]}  Rfb8 {[%clk 0:01:06]} 21. a5 {[%clk 0:01:58]}  Bxb5 {[%clk 0:00:58]} 22. cxb5 {[%clk 0:01:58]}  Nd5 {[%clk 0:00:58]} 23. b6 {[%clk 0:01:47]}  Nxe3 {[%clk 0:00:52]} 24. fxe3 {[%clk 0:01:46]}  Nxb6 {[%clk 0:00:48]} 25. axb6 {[%clk 0:01:45]}  Rxa1 {[%clk 0:00:48]} 26. Rxa1 {[%clk 0:01:45]}  Rxb6 {[%clk 0:00:49]} 27. Bc4 {[%clk 0:01:45]}  g5 {[%clk 0:00:49]} 28. e4 {[%clk 0:01:41]}  Kg7 {[%clk 0:00:49]} 29. e5 {[%clk 0:01:37]}  Rc6 {[%clk 0:00:48]} 30. Re1 {[%clk 0:01:34]}  Rc5 {[%clk 0:00:47]} 31. g4 {[%clk 0:01:35]}  h5 {[%clk 0:00:47]} 32. h3 {[%clk 0:01:34]}  hxg4 {[%clk 0:00:46]} 33. hxg4 {[%clk 0:01:35]}  Ra5 {[%clk 0:00:46]} 34. Kf2 {[%clk 0:01:34]}  Rc5 {[%clk 0:00:44]} 35. Re2 {[%clk 0:01:33]}  Ra5 {[%clk 0:00:44]} 36. Kf3 {[%clk 0:01:32]}  Kg6 {[%clk 0:00:38]} 37. Ke4 {[%clk 0:01:28]}  Ra1 {[%clk 0:00:38]} 38. Rb2 {[%clk 0:01:18]}  Re1+ {[%clk 0:00:37]} 39. Be2 {[%clk 0:01:18]}  f5+ {[%clk 0:00:27]} 40. exf6 {[%clk 0:01:19]}  Kxf6 {[%clk 0:00:28]} 41. b4 {[%clk 0:01:18]}  Ke7 {[%clk 0:00:28]} 42. b5 {[%clk 0:01:18]}  Kd8 {[%clk 0:00:26]} 43. b6 {[%clk 0:01:18]}  Kc8 {[%clk 0:00:27]} 44. b7+ {[%clk 0:01:17]}  Kb8 {[%clk 0:00:27]} 45. Ke5 {[%clk 0:01:08]}  Rc1 {[%clk 0:00:26]} 46. Bf3 {[%clk 0:01:03]}  Rc3 {[%clk 0:00:24]} 47. Be4 {[%clk 0:00:59]}  Rc5+ {[%clk 0:00:23]} 48. Kf6 {[%clk 0:00:59]}  Rc4 {[%clk 0:00:22]} 49. Bg2 {[%clk 0:00:54]}  Rxg4 {[%clk 0:00:20]} 50. Rc2 {[%clk 0:00:54]}  Rxg2 {[%clk 0:00:12]} 51. Rxg2 {[%clk 0:00:55]}  Kxb7 {[%clk 0:00:12]} 52. Kxe6 {[%clk 0:00:54]} 1-0


[Site "https://www.chess.com"]

[Event "Titled Tuesday Blitz October 26 2021"]
[White "atbenina64"]
[Black "Krivonosov, Oleg"]
[BlackFideId "11600349"]
[WhiteElo "2609"]
[BlackElo "2469"]
[Result "1-0"]
[Round "09"]
[TimeControl "180+1"]
[Date "2021.10.26"]
[WhiteClock "0:00:06"]
[BlackClock "0:00:01"]

1. e4 {[%clk 0:03:00]}  e5 {[%clk 0:02:59]} 2. Nf3 {[%clk 0:02:48]}  Nc6 {[%clk 0:02:59]} 3. Nc3 {[%clk 0:02:48]}  Nf6 {[%clk 0:02:58]} 4. d4 {[%clk 0:02:48]}  exd4 {[%clk 0:02:57]} 5. Nxd4 {[%clk 0:02:49]}  Bb4 {[%clk 0:02:57]} 6. Nxc6 {[%clk 0:02:50]}  bxc6 {[%clk 0:02:57]} 7. Bd3 {[%clk 0:02:50]}  d5 {[%clk 0:02:57]} 8. exd5 {[%clk 0:02:51]}  cxd5 {[%clk 0:02:57]} 9. O-O {[%clk 0:02:52]}  O-O {[%clk 0:02:56]} 10. h3 {[%clk 0:02:52]}  c6 {[%clk 0:02:55]} 11. Qf3 {[%clk 0:02:52]}  Rb8 {[%clk 0:02:47]} 12. Bf4 {[%clk 0:02:52]}  Bd6 {[%clk 0:02:47]} 13. b3 {[%clk 0:02:53]}  Be6 {[%clk 0:02:40]} 14. Rad1 {[%clk 0:02:52]}  c5 {[%clk 0:02:39]} 15. Rfe1 {[%clk 0:02:50]}  Bxf4 {[%clk 0:02:33]} 16. Qxf4 {[%clk 0:02:51]}  Qa5 {[%clk 0:02:33]} 17. Ne2 {[%clk 0:02:47]}  h6 {[%clk 0:02:02]} 18. Qe5 {[%clk 0:02:20]}  Nd7 {[%clk 0:01:48]} 19. Qd6 {[%clk 0:02:18]}  Qb6 {[%clk 0:01:47]} 20. Qg3 {[%clk 0:02:16]}  Nf6 {[%clk 0:01:39]} 21. Nf4 {[%clk 0:02:15]}  Rbe8 {[%clk 0:01:36]} 22. c4 {[%clk 0:02:12]}  d4 {[%clk 0:01:28]} 23. Re5 {[%clk 0:02:04]}  Bd7 {[%clk 0:01:22]} 24. Rde1 {[%clk 0:02:03]}  Rxe5 {[%clk 0:01:22]} 25. Rxe5 {[%clk 0:02:04]}  Re8 {[%clk 0:01:20]} 26. Rxe8+ {[%clk 0:02:00]}  Bxe8 {[%clk 0:01:21]} 27. Qf3 {[%clk 0:01:58]}  Qc6 {[%clk 0:01:18]} 28. Nd5 {[%clk 0:01:55]}  Nxd5 {[%clk 0:01:15]} 29. cxd5 {[%clk 0:01:56]}  Qd6 {[%clk 0:01:15]} 30. Qe4 {[%clk 0:01:53]}  Kf8 {[%clk 0:01:13]} 31. b4 {[%clk 0:01:40]}  cxb4 {[%clk 0:01:10]} 32. Qxd4 {[%clk 0:01:40]}  a5 {[%clk 0:01:09]} 33. Bc4 {[%clk 0:01:39]}  a4 {[%clk 0:01:08]} 34. g3 {[%clk 0:01:35]}  Bd7 {[%clk 0:00:57]} 35. Kg2 {[%clk 0:01:28]}  Qb8 {[%clk 0:00:51]} 36. Qc5+ {[%clk 0:01:27]}  Kg8 {[%clk 0:00:47]} 37. d6 {[%clk 0:01:22]}  b3 {[%clk 0:00:40]} 38. axb3 {[%clk 0:01:21]}  axb3 {[%clk 0:00:41]} 39. Bd3 {[%clk 0:00:40]}  b2 {[%clk 0:00:37]} 40. Bb1 {[%clk 0:00:39]}  g6 {[%clk 0:00:34]} 41. Qe5 {[%clk 0:00:34]}  Qb5 {[%clk 0:00:29]} 42. Qf6 {[%clk 0:00:26]}  Qd5+ {[%clk 0:00:27]} 43. Kh2 {[%clk 0:00:26]}  Qd2 {[%clk 0:00:19]} 44. Bxg6 {[%clk 0:00:12]}  fxg6 {[%clk 0:00:16]} 45. Qd8+ {[%clk 0:00:12]}  Kf7 {[%clk 0:00:15]} 46. Qxd7+ {[%clk 0:00:11]}  Kg8 {[%clk 0:00:15]} 47. Qe8+ {[%clk 0:00:11]}  Kg7 {[%clk 0:00:15]} 48. Qe7+ {[%clk 0:00:11]}  Kg8 {[%clk 0:00:15]} 49. Qe6+ {[%clk 0:00:11]}  Kg7 {[%clk 0:00:14]} 50. Qd7+ {[%clk 0:00:07]}  Kg8 {[%clk 0:00:14]} 51. Qc8+ {[%clk 0:00:08]}  Kg7 {[%clk 0:00:13]} 52. Qb7+ {[%clk 0:00:07]}  Kg8 {[%clk 0:00:13]} 53. Kg2 {[%clk 0:00:03]}  Qxd6 {[%clk 0:00:10]} 54. Qxb2 {[%clk 0:00:03]}  Qd5+ {[%clk 0:00:10]} 55. Kh2 {[%clk 0:00:04]}  Qf3 {[%clk 0:00:10]} 56. Qb8+ {[%clk 0:00:04]}  Kg7 {[%clk 0:00:09]} 57. Qa7+ {[%clk 0:00:05]}  Kg8 {[%clk 0:00:08]} 58. Qd4 {[%clk 0:00:05]}  h5 {[%clk 0:00:07]} 59. h4 {[%clk 0:00:06]}  Kf7 {[%clk 0:00:06]} 60. Qe3 {[%clk 0:00:05]}  Qf5 {[%clk 0:00:06]} 61. Kg2 {[%clk 0:00:06]}  Kg8 {[%clk 0:00:05]} 62. Qf3 {[%clk 0:00:06]}  Qe6 {[%clk 0:00:05]} 63. Qb7 {[%clk 0:00:06]}  Qf5 {[%clk 0:00:04]} 64. Qb3+ {[%clk 0:00:03]}  Kg7 {[%clk 0:00:03]} 65. Qe3 {[%clk 0:00:04]}  Kg8 {[%clk 0:00:03]} 66. f3 {[%clk 0:00:04]}  Qd5 {[%clk 0:00:02]} 67. Qe4 {[%clk 0:00:04]}  Qd2+ {[%clk 0:00:02]} 68. Kh3 {[%clk 0:00:05]}  Qd7+ {[%clk 0:00:02]} 69. g4 {[%clk 0:00:05]}  hxg4+ {[%clk 0:00:01]} 70. Qxg4 {[%clk 0:00:04]}  Qf7 {[%clk 0:00:02]} 71. h5 {[%clk 0:00:05]}  Kh7 {[%clk 0:00:02]} 72. Qxg6+ {[%clk 0:00:04]}  Qxg6 {[%clk 0:00:02]} 73. hxg6+ {[%clk 0:00:05]}  Kxg6 {[%clk 0:00:02]} 74. Kg4 {[%clk 0:00:06]}  Kf6 {[%clk 0:00:02]} 75. Kf4 {[%clk 0:00:06]}  Ke6 {[%clk 0:00:01]} 76. Kg5 {[%clk 0:00:06]} 1-0


[Site "https://www.chess.com"]